bitfinex/quotes_SOLUSD_20260102
["timestamp","ask_amount","ask_price","bid_price","bid_amount"]
[1767372023830,5.60337029,131.14,131.1,8.3090902]
[1767372024045,5.60337029,131.13,131.1,0.68140257]
[1767372025144,5.60337029,131.16,131.11,0.68140257]
[1767372025348,5.60337029,131.14,131.11,0.68140257]
[1767372026144,5.60337029,131.13,131.11,8.30854249]
[1767372026314,21.54363987,131.18,131.12,0.68140257]
[1767372026518,5.60337029,131.14,131.12,0.68140257]
[1767372026719,5.60337029,131.13,131.12,0.68140257]
[1767372026937,5.60337029,131.13,131.1,8.33943404]
[1767372027118,21.54363987,131.18,131.1,8.33943404]
[1767372027641,5.60337029,131.12,131.11,7.62710643]
[1767372027947,5.60337029,131.13,131.11,8.33893998]
[1767372028240,5.60337029,131.13,131.12,0.71183355]
[1767372028449,5.60337029,131.13,131.11,8.33893998]
[1767372028825,5.60337029,131.13,131.11,0.71183355]
[1767372029024,5.60337029,131.13,131.11,8.33896959]
[1767372029638,5.60337029,131.13,131.11,0.71183355]
[1767372029826,5.60337029,131.12,131.1,7.62760675]
[1767372030036,5.60337029,131.12,131.1,8.31793439]
[1767372030224,5.60337029,131.14,131.11,0.69032764]
[1767372030430,5.60337029,131.14,131.12,0.69032764]
[1767372031341,5.60337029,131.13,131.11,61.2]
[1767372031551,5.60337029,131.12,131.1,61.89032764]
[1767372031755,5.60337029,131.11,131.07,0.69032764]
[1767372032057,13.92,131.14,131.08,0.69032764]
[1767372032259,5.60337029,131.1,131.08,0.69032764]
[1767372033753,5.60337029,131.09,131.08,8.31925653]
[1767372033972,5.60337029,131.09,131.08,0.69032764]
[1767372034438,5.60337029,131.13,131.08,0.69032764]
[1767372034633,21.54576894,131.14,131.08,0.69032764]
[1767372034634,5.60337029,131.09,131.08,0.69032764]
[1767372035030,5.60337029,131.09,131.08,8.31925653]
[1767372035234,5.60337029,131.09,131.08,0.69032764]
[1767372035663,5.60337029,131.1,131.08,0.69032764]
[1767372035958,5.60337029,131.09,131.07,8.31959421]
[1767372036260,5.60337029,131.09,131.07,0.69032764]
[1767372036469,5.60337029,131.08,131.05,0.69032764]
[1767372036631,5.60337029,131.06,131.04,7.63083248]
[1767372036945,5.60337029,131.06,131.05,0.69032764]
[1767372037547,5.60337029,131.06,131.03,0.69032764]
[1767372037747,7.62872318,131.09,131.03,0.69032764]
[1767372037956,5.60337029,131.05,131.03,0.69032764]
[1767372038138,5.60337029,131.04,131.03,0.69032764]
[1767372038341,5.60337029,131.04,131.01,8.32309573]
[1767372038642,21.54872318,131.09,131.02,0.69032764]
[1767372038862,5.60337029,131.04,131.02,0.69032764]
[1767372039669,13.92,131.09,131.03,0.69032764]
[1767372039863,5.60337029,131.05,131.03,0.69032764]
[1767372040168,5.60337029,131.05,131.02,7.63227276]
[1767372040367,5.60337029,131.05,131.03,0.69032764]
[1767372040665,13.92,131.09,131.03,0.69032764]
[1767372040862,5.60337029,131.05,131.03,0.69032764]
[1767372041066,5.60337029,131.07,131.02,32.31669937]
[1767372041268,5.60337029,131.07,131.02,26.71332908]
[1767372041463,5.60337029,131.07,131.02,32.31669937]
[1767372041661,5.60337029,131.07,131.03,0.69032764]
[1767372042182,5.60337029,131.07,131.04,8.32158527]
[1767372042341,5.60337029,131.07,131.05,0.69032764]
[1767372043361,0.69886444,131.11,131.05,0.69032764]
[1767372043554,5.60337029,131.08,131.05,0.69032764]
[1767372044271,5.60337029,131.08,131.06,8.32042072]
[1767372045454,5.60337029,131.08,131.06,0.69032764]
[1767372046070,5.60337029,131.08,131.07,1.0]
[1767372047195,0.1273919,131.1,131.07,1.0]
[1767372047503,5.60337029,131.08,131.07,1.0]
[1767372048375,5.60337029,131.08,131.05,8.32098911]
[1767372048591,5.60337029,131.07,131.05,8.32098911]
[1767372049096,5.60337029,131.07,131.05,0.69032764]
[1767372049977,0.1273919,131.1,131.05,0.69032764]
[1767372050385,5.60337029,131.07,131.05,0.69032764]
[1767372051085,0.1273919,131.1,131.05,0.69032764]
[1767372051270,5.60337029,131.07,131.05,0.69032764]
[1767372052701,2.44330654,131.07,131.05,0.69032764]
[1767372053004,2.44330654,131.07,131.04,7.63120475]
[1767372053175,2.44330654,131.07,131.04,8.32153239]
[1767372054390,2.44330654,131.06,131.04,8.32153239]
[1767372054585,2.44330654,131.06,131.03,7.63150611]
[1767372054791,0.68754871,131.07,131.03,8.32183375]
[1767372054992,2.44330654,131.05,131.03,8.32183375]
[1767372055192,0.69886444,131.08,131.03,69.52183375]
[1767372055392,2.44330654,131.05,131.03,69.52183375]
[1767372055703,2.44330654,131.05,131.01,33.00206852]
[1767372055704,2.44330654,131.04,131.02,8.32273673]
[1767372056402,0.69886444,131.07,131.03,8.32208892]
[1767372056605,0.69886444,131.11,131.05,0.69032764]
[1767372056813,2.44330654,131.09,131.05,0.69032764]
[1767372057109,0.13304948,131.08,131.04,3.13363418]
[1767372057301,2.44330654,131.09,131.04,3.13363418]
[1767372057524,2.44330654,131.1,131.06,0.69032764]
[1767372058577,2.44330654,131.1,131.07,0.69032764]
[1767372058779,2.44330654,131.11,131.07,0.69032764]
[1767372058984,2.44330654,131.1,131.07,0.69032764]
[1767372060008,0.1273919,131.12,131.07,0.69032764]
[1767372060218,2.44330654,131.12,131.08,0.69417046]
[1767372060399,14.61212734,131.16,131.09,0.69417046]
[1767372060588,10.06653342,131.18,131.11,0.69417046]
[1767372060589,0.69212734,131.18,131.11,0.69417046]
[1767372060785,5.60348995,131.15,131.11,0.69417046]
[1767372061093,0.13958648,131.14,131.1,5.60348995]
[1767372062214,0.13958648,131.14,131.1,7.62776506]
[1767372062423,0.13958648,131.14,131.1,13.23125501]
[1767372062619,0.13958648,131.14,131.1,13.92542547]
[1767372062807,5.60348995,131.14,131.11,0.69417046]
[1767372063206,5.74849133,131.13,131.1,7.62776506]
[1767372063525,5.60348995,131.13,131.11,0.69417046]
[1767372063707,0.69212734,131.18,131.11,0.69417046]
[1767372064025,5.60348995,131.15,131.11,0.69417046]
[1767372064249,0.69212734,131.2,131.13,0.69417046]
[1767372064520,5.73755158,131.18,131.13,0.69417046]
[1767372064726,5.93755158,131.21,131.16,6.29766041]
[1767372064935,5.93755158,131.21,131.13,30.0]
[1767372064936,0.2,131.21,131.18,0.69417046]
[1767372065221,0.2,131.21,131.13,43.95362832]
[1767372065222,1e-08,131.21,131.2,0.69417046]
[1767372065604,1e-08,131.21,131.18,6.29766041]
[1767372065803,1e-08,131.21,131.19,0.69417046]
[1767372065999,1e-08,131.21,131.18,6.29766041]
[1767372066204,1e-08,131.21,131.19,0.69417046]
[1767372066829,1e-08,131.21,131.19,7.62252531]
[1767372067037,1e-08,131.21,131.17,0.69417046]
[1767372067322,1e-08,131.21,131.13,0.69417046]
[1767372067323,9.09353982,131.18,131.13,0.69417046]
[1767372067526,9.09353982,131.17,131.13,0.69417046]
[1767372067828,9.09353982,131.16,131.12,7.62660158]
[1767372068002,9.09353982,131.15,131.12,7.62660158]
[1767372068199,9.09353982,131.14,131.12,7.62660158]
[1767372068524,9.09353982,131.15,131.13,0.69417046]
[1767372068830,0.69212734,131.18,131.12,7.62660158]
[1767372069015,0.69212734,131.16,131.12,7.62660158]
[1767372069334,9.09353982,131.16,131.13,0.69417046]
[1767372069729,9.78566716,131.15,131.12,26.69310554]
[1767372069911,0.69212734,131.14,131.12,26.69310554]
[1767372070327,0.69212734,131.16,131.12,26.69310554]
[1767372070530,9.09353982,131.15,131.12,26.69310554]
[1767372070731,9.78566716,131.16,131.12,26.69310554]
[1767372070908,0.69212734,131.18,131.13,0.69417046]
[1767372071106,9.78566716,131.18,131.13,9.78771028]
[1767372071317,9.09353982,131.16,131.13,0.69417046]
[1767372071827,0.69212734,131.16,131.12,35.78664536]
[1767372072434,9.09353982,131.18,131.14,0.69417046]
[1767372073031,0.69212734,131.2,131.14,8.31903284]
[1767372073232,9.09353982,131.18,131.15,0.69417046]
[1767372073839,0.69212734,131.17,131.14,26.68845853]
[1767372074532,9.09353982,131.17,131.15,0.69417046]
[1767372074712,0.69212734,131.19,131.15,0.69417046]
[1767372075028,9.09353982,131.17,131.15,0.69417046]
[1767372075228,9.09353982,131.16,131.13,8.31998355]
[1767372075414,0.69212734,131.18,131.13,8.31998355]
[1767372075613,9.09353982,131.16,131.13,8.31998355]
[1767372076037,9.09353982,131.16,131.13,0.69417046]
[1767372076222,9.09353982,131.16,131.12,8.32055778]
[1767372076437,0.69212734,131.17,131.13,8.32009358]
[1767372076650,9.09353982,131.16,131.13,8.32009358]
[1767372076830,9.78566716,131.17,131.13,8.32009358]
[1767372077744,9.78566716,131.19,131.14,9.78771028]
[1767372078124,0.69212734,131.19,131.14,9.78771028]
[1767372078348,9.78566716,131.19,131.15,0.69417046]
[1767372078546,9.09353982,131.2,131.16,0.69417046]
[1767372078745,1e-08,131.21,131.18,9.78771028]
[1767372079047,9.09353983,131.21,131.17,7.62346175]
[1767372079244,9.09353982,131.2,131.16,8.31794861]
[1767372079449,9.09353982,131.2,131.16,17.41148843]
[1767372079652,9.09353982,131.2,131.17,7.62366507]
[1767372079871,0.69212735,131.21,131.17,16.71720489]
[1767372080153,1e-08,131.21,131.19,0.69417046]
[1767372080453,9.09353983,131.21,131.18,8.31720526]
[1767372080651,1e-08,131.21,131.18,8.31720526]
[1767372080858,1e-08,131.21,131.18,0.69417046]
[1767372081152,9.09353983,131.21,131.17,7.62343158]
[1767372081341,9.09353983,131.21,131.17,8.31760204]
[1767372081754,9.09353982,131.2,131.16,8.31823195]
[1767372082255,9.09353982,131.2,131.16,17.41177177]
[1767372082457,9.09353982,131.2,131.16,0.69417046]
[1767372082754,9.09353982,131.19,131.16,0.69417046]
[1767372083250,9.09353982,131.2,131.16,8.31836255]
[1767372083454,1e-08,131.21,131.16,8.31836255]
[1767372083455,9.09353983,131.21,131.17,0.69417046]
[1767372084034,9.78566717,131.21,131.17,0.69417046]
[1767372084234,9.09353982,131.2,131.16,8.31836255]
[1767372084435,9.78566717,131.21,131.17,9.78771028]
[1767372084947,1e-08,131.21,131.19,9.78771028]
[1767372085153,1e-08,131.21,131.2,9.78771028]
[1767372085366,1e-08,131.21,131.2,0.69417046]
[1767372085546,1e-08,131.21,131.2,8.31612167]
[1767372086972,1e-08,131.21,131.18,0.6824802]
[1767372087267,9.09353982,131.2,131.17,8.30610908]
[1767372087438,9.09353983,131.21,131.17,8.30610908]
[1767372088267,1e-08,131.21,131.17,8.30610908]
[1767372088437,9.09353983,131.21,131.17,8.30610908]
[1767372088837,1e-08,131.21,131.18,0.6824802]
[1767372089145,9.09353983,131.21,131.18,0.6824802]
[1767372089759,9.09353982,131.2,131.18,0.6824802]
[1767372089947,9.09353983,131.21,131.18,0.6824802]
[1767372091157,9.09353982,131.2,131.18,0.6824802]
[1767372091363,9.09353982,131.2,131.17,7.62367613]
[1767372091964,9.09353982,131.2,131.16,8.30103387]
[1767372092667,9.09353982,131.19,131.16,8.30103387]
[1767372092975,9.77080686,131.19,131.15,7.62460374]
[1767372093367,9.77080686,131.19,131.15,8.301517]
[1767372093674,9.09353982,131.18,131.15,8.301517]
[1767372093848,9.09353982,131.18,131.15,7.62460374]
[1767372095349,9.09353982,131.17,131.14,8.30225554]
[1767372095565,9.09353982,131.15,131.1,0.67691326]
[1767372095871,0.67726704,131.13,131.1,7.62776506]
[1767372096252,0.64726704,131.13,131.1,26.69717772]
[1767372096964,1e-08,131.21,131.12,9.77045308]
[1767372097149,9.09353982,131.17,131.12,22.99353982]
[1767372097348,9.09353982,131.16,131.12,13.9]
[1767372097550,9.09353982,131.17,131.12,22.99353982]
[1767372097757,9.09353982,131.17,131.13,7.62601998]
[1767372098051,9.09353982,131.18,131.14,0.67691326]
[1767372098251,0.67726704,131.19,131.15,9.09353982]
[1767372098556,9.09353982,131.2,131.16,0.67691326]
[1767372098771,9.77080686,131.2,131.16,0.67691326]
[1767372099654,0.67726704,131.2,131.16,0.67691326]
[1767372099959,9.09353982,131.2,131.17,7.62369444]
[1767372101663,9.09353982,131.2,131.16,8.30110851]
[1767372102065,9.09353982,131.19,131.16,8.30110851]
[1767372102619,0.67726704,131.16,131.11,7.62678985]
[1767372102791,0.67726704,131.13,131.11,7.62678985]
[1767372103076,0.67726704,131.12,131.1,7.62752312]
[1767372103858,9.77080686,131.12,131.09,7.62798896]
[1767372104081,0.67726704,131.12,131.08,42.08515819]
[1767372104393,0.67726704,131.12,131.09,7.62834693]
[1767372104691,9.77080686,131.12,131.09,7.62834693]
[1767372105072,9.09353982,131.12,131.09,7.62834693]
[1767372105374,9.09353982,131.12,131.08,22.22560171]
[1767372106278,9.00303084,131.12,131.08,22.22560171]
[1767372106511,0.67726704,131.19,131.11,0.67691326]
[1767372106706,9.09353982,131.15,131.11,0.67691326]
[1767372107214,0.67726704,131.17,131.11,0.67691326]
[1767372107395,9.09353982,131.14,131.11,0.67691326]
[1767372107704,9.09353982,131.15,131.11,0.67691326]
[1767372108131,9.09353982,131.15,131.12,7.62660158]
[1767372108586,0.67726704,131.17,131.11,8.30385973]
[1767372108792,9.09353982,131.15,131.11,8.30385973]
[1767372109020,0.67726704,131.17,131.11,8.30385973]
[1767372109193,9.09353982,131.15,131.12,0.67691326]
[1767372109395,9.09353982,131.16,131.12,0.67691326]
[1767372109590,9.09353982,131.17,131.13,0.67691326]
[1767372109791,9.09353982,131.18,131.14,0.67691326]
[1767372110305,9.09353982,131.18,131.15,7.62485703]
[1767372111886,9.09353982,131.2,131.16,0.67691326]
[1767372112189,9.09353982,131.2,131.16,8.27214282]
[1767372112385,0.67726704,131.19,131.14,9.09353982]
[1767372112605,9.09353982,131.18,131.14,13.92]
[1767372112811,9.09353982,131.17,131.14,7.6249367]
[1767372113004,0.67726704,131.19,131.15,7.59536544]
[1767372113209,9.09353982,131.18,131.15,7.59536544]
[1767372113407,9.09353982,131.17,131.12,13.92]
[1767372113604,9.09353982,131.17,131.13,7.62559625]
[1767372114000,9.09353982,131.16,131.13,7.62559625]
[1767372114604,9.09353982,131.16,131.12,22.22332861]
[1767372114803,9.09353982,131.14,131.1,0.67691326]
[1767372115010,9.09353982,131.14,131.11,7.62712798]
[1767372115937,9.09353982,131.14,131.1,8.30446398]
[1767372116129,9.09353982,131.13,131.1,8.30446398]
[1767372116431,9.09353982,131.11,131.08,7.62884802]
[1767372116633,9.09353982,131.1,131.08,7.62884802]
[1767372116939,9.09353982,131.1,131.07,8.30616347]
[1767372117110,9.09353982,131.09,131.07,0.67691326]
[1767372117817,9.09353982,131.1,131.07,0.67691326]
[1767372118019,9.09353982,131.09,131.07,0.67691326]
[1767372118322,9.09353982,131.08,131.06,0.67691326]
[1767372118509,9.09353982,131.07,131.04,22.22797949]
[1767372118844,0.67726704,131.11,131.05,0.67691326]
[1767372119025,9.09353982,131.08,131.05,0.67691326]
[1767372119343,9.09353982,131.06,131.04,7.63106623]
[1767372119629,9.09353982,131.08,131.04,7.63106623]
[1767372120021,9.09353982,131.07,131.04,7.63106623]
[1767372120408,9.09353982,131.06,131.03,7.63175382]
[1767372120715,0.65994919,131.07,131.04,0.66478852]
[1767372120716,9.09353982,131.07,131.04,0.66478852]
[1767372121121,7.62660158,131.12,131.04,0.66478852]
[1767372121324,9.09353982,131.05,131.02,0.66478852]
[1767372121528,0.65994919,131.06,131.02,0.66478852]
[1767372121731,9.09353982,131.03,131.0,0.76478852]
[1767372121920,9.09353982,131.03,131.0,8.39836744]
[1767372122325,9.09353982,131.03,131.0,0.76478852]
[1767372122514,0.65994919,131.02,131.0,0.1]
[1767372122927,0.65994919,131.02,131.0,7.73353624]
[1767372123333,9.75348901,131.01,130.98,7.73454545]
[1767372123540,9.09353982,131.01,130.99,0.66478852]
[1767372123713,9.09353982,131.02,130.99,0.66478852]
[1767372123913,0.65994919,131.04,130.99,8.29895334]
[1767372124210,9.09353982,131.02,130.99,8.29895334]
[1767372124823,0.65994919,131.04,130.99,8.29895334]
[1767372125024,9.09353982,131.02,130.99,8.29895334]
[1767372125232,9.09353982,131.01,130.98,7.73454858]
[1767372125531,22.25013837,131.09,130.98,0.1]
[1767372125532,9.09353982,131.0,130.98,0.1]
[1767372126036,9.09353982,130.99,130.98,0.1]
[1767372126210,0.65994919,130.99,130.94,0.1]
[1767372126412,9.09353982,130.95,130.94,0.1]
[1767372126741,6.27843543,130.95,130.92,0.1]
[1767372127050,5.61996665,130.93,130.91,0.1]
[1767372127250,0.58665017,130.94,130.91,0.1]
[1767372127414,5.61996665,130.91,130.89,0.1]
[1767372127617,5.61996665,130.9,130.89,0.1]
[1767372128046,0.65775059,130.93,130.89,0.1]
[1767372128335,0.65920154,130.96,130.91,7.63883584]
[1767372128541,5.61996665,130.94,130.9,8.30408462]
[1767372128842,5.61996665,130.92,130.89,7.73985065]
[1767372129037,0.65994919,130.96,130.91,0.66478852]
[1767372129245,5.61996665,130.94,130.91,0.66478852]
[1767372129625,5.61996665,130.93,130.91,0.66478852]
[1767372129831,5.61996665,130.93,130.9,13.92]
[1767372130024,5.61996665,130.92,130.9,13.92]
[1767372130226,5.61996665,130.93,130.89,8.40459808]
[1767372130446,5.61996665,130.9,130.89,0.1]
[1767372130740,7.63712906,130.94,130.89,0.1]
[1767372130741,5.61996665,130.92,130.89,0.76478852]
[1767372130949,5.61996665,130.94,130.89,6.38475517]
[1767372131246,0.65994919,130.96,130.89,0.76478852]
[1767372131448,5.61996665,130.93,130.89,0.76478852]
[1767372131643,0.65994919,130.96,130.89,0.76478852]
[1767372131644,5.61996665,130.94,130.89,0.76478852]
[1767372132150,0.58592473,130.93,130.89,0.1]
[1767372132445,5.61996665,130.95,130.91,8.30362436]
[1767372132672,0.58518456,130.96,130.91,8.30362436]
[1767372132842,0.58592473,130.94,130.9,7.63939683]
[1767372133142,5.61996665,130.95,130.9,6.28475517]
[1767372133340,5.61996665,130.95,130.91,0.66478852]
[1767372133643,7.634316,130.99,130.91,0.66478852]
[1767372133644,0.58518456,130.97,130.91,0.66478852]
[1767372133941,6.20515121,130.97,130.91,0.66478852]
[1767372134122,5.61996665,130.98,130.93,6.28475517]
[1767372134442,5.61996665,130.96,130.93,0.66478852]
[1767372134647,0.65994919,130.97,130.91,13.92342001]
[1767372134820,5.61996665,130.96,130.92,0.66478852]
[1767372135240,6.27991584,130.97,130.92,6.28475517]
[1767372135443,6.27991584,130.97,130.92,13.92284665]
[1767372135816,5.61996665,130.96,130.92,13.92284665]
[1767372136020,0.65994919,130.97,130.92,0.66478852]
[1767372136243,0.58592473,130.94,130.9,19.55996665]
[1767372136459,5.61996665,130.95,130.9,27.86401736]
[1767372136642,0.58518456,130.95,130.9,0.66478852]
[1767372136837,5.61996665,130.94,130.9,8.30401145]
[1767372137348,0.58592473,130.93,130.9,7.63922293]
[1767372137653,5.61996665,130.94,130.9,8.30401145]
[1767372137854,0.65994919,130.95,130.9,8.30401145]
[1767372137855,7.63491998,130.98,130.91,0.66478852]
[1767372138055,13.92,131.0,130.92,6.28475517]
[1767372138056,5.61996665,130.97,130.92,6.28475517]
[1767372138359,7.63475339,130.98,130.9,8.30401145]
[1767372138537,5.61996665,130.94,130.9,8.30401145]
[1767372138731,0.65920154,130.95,130.9,13.9239781]
[1767372138934,5.61996665,130.94,130.9,8.30401145]
[1767372139656,0.65920154,130.95,130.9,8.30401145]
[1767372139961,5.61996665,130.94,130.9,8.30401145]
[1767372140333,0.65920154,130.95,130.9,8.30401145]
[1767372140544,5.61996665,130.96,130.92,0.66478852]
[1767372140730,21.55380852,131.0,130.92,0.66478852]
[1767372140731,5.61996665,130.98,130.93,0.66478852]
[1767372140940,5.61996665,130.97,130.93,0.66478852]
[1767372141141,0.65994919,131.01,130.94,0.66478852]
[1767372141347,0.65994919,131.01,130.95,0.66478852]
[1767372141545,5.61996665,130.99,130.95,0.66478852]
[1767372141743,5.61996665,130.98,130.93,4.86478852]
[1767372142053,5.61996665,130.98,130.94,0.66478852]
[1767372142437,5.61996665,130.97,130.94,0.66478852]
[1767372142947,0.65920154,130.99,130.94,8.30179429]
[1767372143148,5.61996665,130.98,130.94,8.30179429]
[1767372143344,33.0005773,131.03,130.94,7.63700577]
[1767372143345,0.65994919,131.01,130.94,7.63700577]
[1767372143557,5.61996665,130.96,130.93,11.8374478]
[1767372143872,5.61996665,130.94,130.93,4.2]
[1767372144242,0.58592473,130.96,130.93,4.2]
[1767372144957,0.58592473,130.96,130.91,7.63858671]
[1767372145137,5.61996665,130.98,130.93,13.25763563]
[1767372145650,5.61996665,130.96,130.92,7.63805118]
[1767372146043,5.61996665,130.94,130.91,21.57859878]
[1767372146243,5.61996665,130.94,130.91,13.94]
[1767372146465,5.61996665,130.94,130.91,21.57873633]
[1767372146755,0.65906066,130.94,130.89,0.1]
[1767372146959,0.6587762,130.92,130.89,0.1]
[1767372147469,5.61996665,130.91,130.89,0.1]
[1767372147683,5.61996665,130.9,130.89,0.1]
[1767372147843,0.604646,130.92,130.89,0.1]
[1767372148043,5.61996665,130.9,130.89,0.1]
[1767372148452,0.604646,130.92,130.89,0.1]
[1767372148656,5.61996665,130.9,130.89,0.1]
[1767372149143,5.61996665,130.91,130.89,0.1]
[1767372149646,0.70396412,130.97,130.91,0.70476327]
[1767372149950,5.61996665,130.95,130.9,5.61996665]
[1767372150463,0.70307239,130.95,130.91,5.61996665]
[1767372150661,0.70307239,130.95,130.91,13.25868983]
[1767372150964,0.70307239,130.95,130.89,7.73956895]
[1767372151163,5.61996665,130.92,130.89,0.1]
[1767372151582,5.61996665,130.91,130.89,0.1]
[1767372152365,5.61996665,130.92,130.89,0.1]
[1767372153166,0.70219841,130.93,130.89,0.1]
[1767372153492,5.61996665,130.96,130.91,6.32472992]
[1767372154082,5.61996665,130.96,130.92,0.70476327]
[1767372154289,5.61996665,130.95,130.92,0.70476327]
[1767372154470,0.61567463,130.94,130.91,5.61996665]
[1767372154664,0.61567463,130.94,130.91,7.63883584]
[1767372154870,0.70396412,131.0,130.92,0.70476327]
[1767372155075,0.61479182,130.97,130.92,0.70476327]
[1767372155691,5.61996665,130.96,130.92,0.70476327]
[1767372156162,0.70396412,130.99,130.93,0.70476327]
[1767372156481,0.70396412,130.99,130.94,0.70476327]
[1767372156686,5.61996665,130.97,130.94,0.70476327]
[1767372156870,5.61996665,130.97,130.92,33.05835486]
[1767372157071,5.61996665,130.97,130.92,13.96272395]
[1767372158109,5.61996665,130.97,130.93,8.34218995]
[1767372158392,5.61996665,130.98,130.94,0.70476327]
[1767372158779,0.70396412,131.0,130.94,0.70476327]
[1767372159084,5.61996665,130.97,130.94,0.70476327]
[1767372160283,7.63375621,131.0,130.92,22.28280915]
[1767372160284,5.61996665,130.96,130.92,22.28280915]
[1767372160576,5.61996665,130.95,130.92,0.70476327]
[1767372160770,0.70307239,130.98,130.92,0.70476327]
[1767372160973,5.61996665,130.95,130.92,0.70476327]
[1767372161274,5.61996665,130.94,130.9,8.3439443]
[1767372162496,0.70219841,130.96,130.9,0.70476327]
[1767372162497,5.61996665,130.93,130.9,0.70476327]
[1767372162797,5.61996665,130.94,130.9,8.34407229]
[1767372163197,5.61996665,130.93,130.9,0.70476327]
[1767372163506,0.61653987,130.95,130.89,7.73979846]
[1767372163507,0.69967945,130.9,130.89,0.1]
[1767372163690,5.61996665,130.9,130.88,0.1]
[1767372163996,0.70396412,130.92,130.88,0.1]
[1767372164299,5.61996665,130.89,130.88,0.1]
[1767372164497,5.61996665,130.89,130.86,0.70476327]
[1767372164819,5.61996665,130.89,130.63,26.25258124]
[1767372164820,31.26013837,130.86,130.63,26.25258124]
[1767372165099,3.24791793,130.79,130.7,13.94]
[1767372165271,1.07291793,130.79,130.73,5.61996665]
[1767372165476,1.07291793,130.79,130.7,51.02188698]
[1767372165477,1.07291793,130.79,130.78,8.35013837]
[1767372165701,0.70396412,130.84,130.78,27.91010502]
[1767372165884,0.70396412,130.87,130.81,5.61996665]
[1767372166083,0.70396412,130.86,130.78,22.29013837]
[1767372166282,0.70396412,130.86,130.74,50.95234249]
[1767372166283,0.70396412,130.83,130.74,20.95234249]
[1767372166526,0.70396412,130.83,130.75,13.94]
[1767372166806,0.70396412,130.81,130.76,5.61996665]
[1767372167003,0.70396412,130.81,130.75,13.94]
[1767372167506,0.70396412,130.81,130.77,5.61996665]
[1767372167888,0.70396412,130.81,130.75,13.94]
[1767372168097,0.70396412,130.81,130.77,5.61996665]
[1767372168408,8.34895469,130.81,130.75,13.94]
[1767372168597,0.70396412,130.8,130.76,13.94]
[1767372169198,0.70396412,130.8,130.72,8.35013837]
[1767372169508,0.70396412,130.77,130.72,13.94]
[1767372169802,0.60396412,130.8,130.72,14.64476327]
[1767372169990,0.60396412,130.8,130.77,5.51996665]
[1767372170195,26.75667927,130.81,130.77,13.94]
[1767372170692,32.37664592,130.81,130.77,13.94]
[1767372171205,32.37664592,130.81,130.73,13.94]
[1767372171206,5.7229758,130.78,130.73,13.94]
[1767372172002,0.10693851,130.76,130.73,13.44297439]
[1767372173506,7.64701384,130.77,130.71,13.94]
[1767372173507,5.61996665,130.75,130.71,13.94]
[1767372173680,13.26698049,130.77,130.71,13.94]
[1767372174010,13.26698049,130.77,130.72,13.94]
[1767372174216,5.61996665,130.76,130.72,13.94]
[1767372174511,13.26803322,130.76,130.72,13.94]
[1767372174718,7.64806657,130.76,130.72,13.94]
[1767372175009,13.26803322,130.76,130.72,14.64476327]
[1767372175318,13.26803322,130.76,130.72,13.94]
[1767372175516,5.61996665,130.75,130.72,13.94]
[1767372175730,19.11320539,130.8,130.72,14.64476327]
[1767372176024,5.61996665,130.75,130.72,14.64476327]
[1767372176223,19.11320539,130.8,130.72,14.64476327]
[1767372176224,5.51529,130.79,130.72,13.94]
[1767372176410,5.61996665,130.73,130.7,31.72073153]
[1767372176612,5.61996665,130.72,130.7,31.72073153]
[1767372176798,5.61996665,130.77,130.7,31.72073153]
[1767372176799,5.61996665,130.71,130.7,17.07596826]
[1767372177327,26.76659528,130.76,130.7,17.07596826]
[1767372177626,5.61996665,130.72,130.7,17.07596826]
[1767372178193,5.61996665,130.74,130.7,17.78073153]
[1767372178402,7.64584448,130.79,130.7,24.72707643]
[1767372178598,19.1132754,130.8,130.72,0.70476327]
[1767372178814,5.61996665,130.75,130.72,0.70476327]
[1767372179119,5.61996665,130.75,130.71,13.96]
[1767372179292,5.61996665,130.75,130.71,14.67810664]
[1767372179694,5.61996665,130.74,130.71,14.67810664]
[1767372179916,7.64707159,130.77,130.71,14.67810664]
[1767372180307,7.64350684,130.83,130.72,0.71810664]
[1767372180617,26.75271278,130.83,130.74,0.71810664]
[1767372180806,5.61996665,130.79,130.74,0.71810664]
[1767372181007,5.61996665,130.79,130.75,0.71810664]
[1767372181207,5.61996665,130.79,130.76,14.67810664]
[1767372181631,5.61996665,130.8,130.77,14.67810664]
[1767372181844,7.64313311,130.84,130.78,13.96]
[1767372182132,5.61996665,130.82,130.78,13.96]
[1767372182332,5.51529,130.9,130.78,0.71810664]
[1767372182537,5.61996665,130.82,130.79,0.71810664]
[1767372182773,5.61996665,130.81,130.8,13.96]
[1767372182931,8.35013837,130.89,130.8,14.67810664]
[1767372183129,5.51529,130.9,130.8,14.67810664]
[1767372183130,19.0970896,130.91,130.81,0.71810664]
[1767372183453,5.61996665,130.86,130.82,14.67810664]
[1767372183643,5.61996665,130.87,130.83,0.71810664]
[1767372183950,5.61996665,130.86,130.84,13.96]
[1767372184126,7.63964004,130.9,130.84,13.96]
[1767372184127,5.61996665,130.85,130.84,13.96]